[Event "*** Titled Tuesday Blitz"]
[Site "Chess.com"]
[Date "2020.02.04"]
[Round "8"]
[White "Anton_Demchenko"]
[Black "temus_galaktionov"]
[Result "1/2-1/2"]
[WhiteElo "2954"]
[BlackElo "2710"]
[TimeControl "180+2"]
[EndTime "14:57:53 PST"]
[Termination "Game drawn by repetition"]

1. e4 {[%clk 0:03:01.9]} 1... c6 {[%clk 0:03:01]} 2. Nf3 {[%clk 0:03:02.8]} 2...
g6 {[%clk 0:03:01.6]} 3. d4 {[%clk 0:02:57.1]} 3... Bg7 {[%clk 0:03:03.5]} 4. c3
{[%clk 0:02:55.8]} 4... d6 {[%clk 0:03:04.9]} 5. Bd3 {[%clk 0:02:55.4]} 5... Nd7
{[%clk 0:03:06.2]} 6. O-O {[%clk 0:02:56.4]} 6... e5 {[%clk 0:03:07]} 7. Be3
{[%clk 0:02:54.9]} 7... Ngf6 {[%clk 0:03:08]} 8. Nbd2 {[%clk 0:02:55.3]} 8...
O-O {[%clk 0:03:08.5]} 9. a4 {[%clk 0:02:48.5]} 9... Ng4 {[%clk 0:03:07.5]} 10.
Bg5 {[%clk 0:02:49.4]} 10... f6 {[%clk 0:03:08.7]} 11. Bh4 {[%clk 0:02:50.8]}
11... h5 {[%clk 0:03:07.3]} 12. h3 {[%clk 0:02:35.8]} 12... Nh6 {[%clk 0:03:08]}
13. Nc4 {[%clk 0:02:28.5]} 13... Qe7 {[%clk 0:03:08.3]} 14. Bg3 {[%clk 0:02:23]}
14... Nb6 {[%clk 0:03:06.2]} 15. a5 {[%clk 0:02:14.3]} 15... Nxc4 {[%clk
0:03:04.7]} 16. Bxc4+ {[%clk 0:02:16.2]} 16... Be6 {[%clk 0:03:05.9]} 17. Qb3
{[%clk 0:02:14.4]} 17... Bxc4 {[%clk 0:03:06.8]} 18. Qxc4+ {[%clk 0:02:16.3]}
18... Nf7 {[%clk 0:03:07.6]} 19. a6 {[%clk 0:02:14.7]} 19... Kh7 {[%clk
0:02:55.4]} 20. Rfe1 {[%clk 0:02:09.8]} 20... Rfc8 {[%clk 0:02:53.3]} 21. axb7
{[%clk 0:02:06.9]} 21... Qxb7 {[%clk 0:02:55.2]} 22. Re2 {[%clk 0:02:01.9]}
22... Qb5 {[%clk 0:02:51.9]} 23. Nd2 {[%clk 0:01:48]} 23... Rc7 {[%clk
0:02:44.5]} 24. b3 {[%clk 0:01:41.2]} 24... a6 {[%clk 0:02:32.4]} 25. f4 {[%clk
0:01:26.1]} 25... Bh6 {[%clk 0:02:27.5]} 26. fxe5 {[%clk 0:01:27.5]} 26... fxe5
{[%clk 0:02:28.4]} 27. Rf1 {[%clk 0:01:18.5]} 27... Raa7 {[%clk 0:02:17.2]} 28.
Kh2 {[%clk 0:01:13.3]} 28... Bxd2 {[%clk 0:02:13.4]} 29. Rxd2 {[%clk 0:01:14.7]}
29... Qxc4 {[%clk 0:02:14.1]} 30. bxc4 {[%clk 0:01:16.6]} 30... a5 {[%clk
0:02:07.8]} 31. c5 {[%clk 0:01:16.6]} 31... dxc5 {[%clk 0:02:07.2]} 32. dxc5
{[%clk 0:00:49]} 32... Rcb7 {[%clk 0:01:55.5]} 33. Ra2 {[%clk 0:00:45]} 33...
Ra6 {[%clk 0:01:40.5]} 34. Rf6 {[%clk 0:00:37.4]} 34... Re7 {[%clk 0:01:33]} 35.
Ra4 {[%clk 0:00:30.2]} 35... Kg7 {[%clk 0:01:32.3]} 36. Rf2 {[%clk 0:00:30]}
36... Rb7 {[%clk 0:01:27.7]} 37. Bh4 {[%clk 0:00:27]} 37... g5 {[%clk
0:01:26.5]} 38. Bg3 {[%clk 0:00:25.3]} 38... h4 {[%clk 0:01:27]} 39. Rxf7+
{[%clk 0:00:26.5]} 39... Kxf7 {[%clk 0:01:27.6]} 40. Bxe5 {[%clk 0:00:28.4]}
40... Ke6 {[%clk 0:01:23.4]} 41. Bd4 {[%clk 0:00:29.3]} 41... Rb1 {[%clk
0:01:22.5]} 42. Be3 {[%clk 0:00:26.5]} 42... Kf6 {[%clk 0:01:21.9]} 43. Bd4+
{[%clk 0:00:26.2]} 43... Kg6 {[%clk 0:01:22.4]} 44. Bf2 {[%clk 0:00:10.9]} 44...
Rf1 {[%clk 0:01:21]} 45. Bd4 {[%clk 0:00:09.2]} 45... Ra8 {[%clk 0:01:18.8]} 46.
g3 {[%clk 0:00:09.2]} 46... Rb8 {[%clk 0:00:52.1]} 47. Kg2 {[%clk 0:00:10.5]}
47... Rf7 {[%clk 0:00:48.7]} 48. gxh4 {[%clk 0:00:11.4]} 48... gxh4 {[%clk
0:00:49.6]} 49. Rxa5 {[%clk 0:00:05.3]} 49... Rb2+ {[%clk 0:00:50.2]} 50. Kg1
{[%clk 0:00:06.8]} 50... Re2 {[%clk 0:00:50.2]} 51. Ra6 {[%clk 0:00:05.4]} 51...
Rc7 {[%clk 0:00:36.2]} 52. Kf1 {[%clk 0:00:03.7]} 52... Rxe4 {[%clk 0:00:36.6]}
53. Kg2 {[%clk 0:00:04]} 53... Kf5 {[%clk 0:00:37.4]} 54. Kf3 {[%clk 0:00:05.1]}
54... Re6 {[%clk 0:00:36.9]} 55. Ra8 {[%clk 0:00:05.3]} 55... Rh6 {[%clk
0:00:32.2]} 56. Rf8+ {[%clk 0:00:04.9]} 56... Ke6 {[%clk 0:00:33.2]} 57. Re8+
{[%clk 0:00:04.3]} 57... Re7 {[%clk 0:00:34.3]} 58. Rg8 {[%clk 0:00:04.6]} 58...
Kd5 {[%clk 0:00:33.8]} 59. Rg5+ {[%clk 0:00:03.5]} 59... Kc4 {[%clk 0:00:34.6]}
60. Rg4 {[%clk 0:00:05.4]} 60... Kd3 {[%clk 0:00:31.7]} 61. Rf4 {[%clk 0:00:07]}
61... Rhh7 {[%clk 0:00:31]} 62. Kg4 {[%clk 0:00:08.5]} 62... Re4 {[%clk
0:00:28.3]} 63. Rxe4 {[%clk 0:00:06.9]} 63... Kxe4 {[%clk 0:00:29.5]} 64. Bf6
{[%clk 0:00:08.8]} 64... Rf7 {[%clk 0:00:14]} 65. Bd4 {[%clk 0:00:07.3]} 65...
Rf4+ {[%clk 0:00:13.4]} 66. Kg5 {[%clk 0:00:08.5]} 66... Kf3 {[%clk 0:00:13.8]}
67. Be5 {[%clk 0:00:05.8]} 67... Re4 {[%clk 0:00:13.4]} 68. Bd6 {[%clk
0:00:07.2]} 68... Kg2 {[%clk 0:00:13.4]} 69. Kf5 {[%clk 0:00:05]} 69... Rc4
{[%clk 0:00:13.2]} 70. Kg5 {[%clk 0:00:03.7]} 70... Kxh3 {[%clk 0:00:14.2]} 71.
Kf5 {[%clk 0:00:05.3]} 71... Kg2 {[%clk 0:00:14.9]} 72. Ke6 {[%clk 0:00:07]}
72... Rxc3 {[%clk 0:00:16]} 73. Kd7 {[%clk 0:00:08.3]} 73... h3 {[%clk 0:00:16]}
74. Kxc6 {[%clk 0:00:09.8]} 74... Rg3 {[%clk 0:00:16.1]} 75. Bxg3 {[%clk
0:00:10.4]} 75... Kxg3 {[%clk 0:00:18]} 76. Kd7 {[%clk 0:00:08.9]} 76... h2
{[%clk 0:00:19.2]} 77. c6 {[%clk 0:00:10.5]} 77... h1=Q {[%clk 0:00:19.8]} 78.
c7 {[%clk 0:00:12]} 78... Qd5+ {[%clk 0:00:19.2]} 79. Kc8 {[%clk 0:00:07.5]}
79... Qb5 {[%clk 0:00:19.8]} 80. Kd8 {[%clk 0:00:08.5]} 80... Qb6 {[%clk
0:00:20.7]} 81. Kd7 {[%clk 0:00:09.4]} 81... Qb7 {[%clk 0:00:21.4]} 82. Kd8
{[%clk 0:00:10.7]} 82... Qd5+ {[%clk 0:00:22.4]} 83. Kc8 {[%clk 0:00:12.2]}
83... Kf4 {[%clk 0:00:23.5]} 84. Kb8 {[%clk 0:00:13.5]} 84... Qb5+ {[%clk
0:00:24.7]} 85. Ka8 {[%clk 0:00:12.6]} 85... Qa5+ {[%clk 0:00:25.9]} 86. Kb8
{[%clk 0:00:13.5]} 86... Qe5 {[%clk 0:00:25.6]} 87. Kb7 {[%clk 0:00:14.3]} 87...
Qe7 {[%clk 0:00:26.7]} 88. Kb8 {[%clk 0:00:15.5]} 88... Qb4+ {[%clk 0:00:27.8]}
89. Ka8 {[%clk 0:00:16.8]} 89... Qc5 {[%clk 0:00:29]} 90. Kb7 {[%clk 0:00:17.7]}
90... Qb5+ {[%clk 0:00:29.8]} 91. Ka7 {[%clk 0:00:18]} 91... Qc6 {[%clk
0:00:29.2]} 92. Kb8 {[%clk 0:00:19]} 92... Qd6 {[%clk 0:00:28]} 93. Kb7 {[%clk
0:00:19.6]} 93... Qd7 {[%clk 0:00:29]} 94. Kb8 {[%clk 0:00:20.9]} 94... Qb5+
{[%clk 0:00:28.9]} 95. Ka7 {[%clk 0:00:21.7]} 95... Qc5+ {[%clk 0:00:29.6]} 96.
Kb7 {[%clk 0:00:22.9]} 96... Qd5+ {[%clk 0:00:30]} 97. Kb8 {[%clk 0:00:23.7]}
97... Qe5 {[%clk 0:00:31.1]} 98. Kb7 {[%clk 0:00:24.7]} 98... Qe7 {[%clk
0:00:31.9]} 99. Kb8 {[%clk 0:00:25.9]} 99... Qd6 {[%clk 0:00:32.2]} 100. Kb7
{[%clk 0:00:27.2]} 100... Qd7 {[%clk 0:00:32.7]} 101. Kb8 {[%clk 0:00:28.5]}
101... Qb5+ {[%clk 0:00:33.9]} 1/2-1/2

[Event "*** Titled Tuesday Blitz"]
[Site "Chess.com"]
[Date "2020.02.04"]
[Round "8"]
[White "djano"]
[Black "Sajkochess"]
[Result "1/2-1/2"]
[WhiteElo "2358"]
[BlackElo "2305"]
[TimeControl "180+2"]
[EndTime "14:59:58 PST"]
[Termination "Game drawn - insufficient material"]

1. Nc3 {[%clk 0:03:01.9]} 1... e5 {[%clk 0:02:59]} 2. Nf3 {[%clk 0:03:00.8]}
2... Nc6 {[%clk 0:02:58.9]} 3. e4 {[%clk 0:02:59.4]} 3... Nf6 {[%clk 0:02:59.4]}
4. g3 {[%clk 0:02:59.6]} 4... d5 {[%clk 0:02:59.1]} 5. exd5 {[%clk 0:02:59.4]}
5... Nxd5 {[%clk 0:03:01]} 6. Bg2 {[%clk 0:03:00.8]} 6... Nxc3 {[%clk 0:03:02]}
7. bxc3 {[%clk 0:03:01.5]} 7... Bc5 {[%clk 0:03:00.6]} 8. O-O {[%clk 0:03:01.6]}
8... O-O {[%clk 0:03:00.1]} 9. Re1 {[%clk 0:03:01.1]} 9... Re8 {[%clk
0:03:00.9]} 10. d3 {[%clk 0:03:01.2]} 10... Bg4 {[%clk 0:02:57.5]} 11. Rb1
{[%clk 0:03:00.6]} 11... Rb8 {[%clk 0:02:50.1]} 12. h3 {[%clk 0:02:59.4]} 12...
Bh5 {[%clk 0:02:50.5]} 13. Be3 {[%clk 0:02:44.3]} 13... Bb6 {[%clk 0:02:49.4]}
14. c4 {[%clk 0:02:38.7]} 14... Nd4 {[%clk 0:02:47.5]} 15. g4 {[%clk 0:02:32.5]}
15... Bg6 {[%clk 0:02:45]} 16. Nxd4 {[%clk 0:02:17.8]} 16... exd4 {[%clk
0:02:43.9]} 17. Bd2 {[%clk 0:02:15.8]} 17... c6 {[%clk 0:02:44.6]} 18. Rxe8+
{[%clk 0:02:02.7]} 18... Qxe8 {[%clk 0:02:46.5]} 19. Bf4 {[%clk 0:02:03.5]}
19... Rc8 {[%clk 0:02:40.5]} 20. c5 {[%clk 0:02:01.8]} 20... Bc7 {[%clk
0:02:33.1]} 21. Qf3 {[%clk 0:02:02.6]} 21... Bxf4 {[%clk 0:02:31.3]} 22. Qxf4
{[%clk 0:02:04.5]} 22... Qd7 {[%clk 0:02:31.7]} 23. Qd6 {[%clk 0:01:42]} 23...
Rc7 {[%clk 0:02:26.3]} 24. Bxc6 {[%clk 0:01:18.3]} 24... Qxd6 {[%clk 0:01:35]}
25. cxd6 {[%clk 0:01:18.5]} 25... Rxc6 {[%clk 0:01:36.1]} 26. d7 {[%clk
0:01:17.2]} 26... Rd6 {[%clk 0:01:32.6]} 27. Rxb7 {[%clk 0:01:15.6]} 27... Kf8
{[%clk 0:01:29.4]} 28. f4 {[%clk 0:00:51.6]} 28... f5 {[%clk 0:01:07.8]} 29.
Rxa7 {[%clk 0:00:50]} 29... Ke7 {[%clk 0:01:01.6]} 30. d8=Q+ {[%clk 0:00:49.6]}
30... Kxd8 {[%clk 0:01:02.3]} 31. Rxg7 {[%clk 0:00:50.5]} 31... Rc6 {[%clk
0:01:01.9]} 32. gxf5 {[%clk 0:00:40.1]} 32... Bxf5 {[%clk 0:00:59.2]} 33. Rg5
{[%clk 0:00:41.1]} 33... Be6 {[%clk 0:00:54.2]} 34. f5 {[%clk 0:00:30]} 34...
Bxa2 {[%clk 0:00:53.8]} 35. Rg4 {[%clk 0:00:25.2]} 35... Rd6 {[%clk 0:00:54.1]}
36. Kf2 {[%clk 0:00:21.7]} 36... Bb1 {[%clk 0:00:53]} 37. Rg8+ {[%clk
0:00:18.8]} 37... Ke7 {[%clk 0:00:53.2]} 38. Rg7+ {[%clk 0:00:20.2]} 38... Kf8
{[%clk 0:00:53.7]} 39. Rxh7 {[%clk 0:00:20.8]} 39... Bxc2 {[%clk 0:00:54.5]} 40.
Ke2 {[%clk 0:00:20.3]} 40... Bb3 {[%clk 0:00:53.1]} 41. Rb7 {[%clk 0:00:14.7]}
41... Bd5 {[%clk 0:00:51.4]} 42. Rc7 {[%clk 0:00:12.7]} 42... Bg2 {[%clk
0:00:51.9]} 43. h4 {[%clk 0:00:13.3]} 43... Bh3 {[%clk 0:00:51.1]} 44. Rc5
{[%clk 0:00:13.5]} 44... Kf7 {[%clk 0:00:50.6]} 45. Kf3 {[%clk 0:00:13.9]} 45...
Kf6 {[%clk 0:00:51.4]} 46. Kf4 {[%clk 0:00:14.9]} 46... Bf1 {[%clk 0:00:51.8]}
47. Ke4 {[%clk 0:00:15.4]} 47... Be2 {[%clk 0:00:44.6]} 48. Rc4 {[%clk
0:00:13.7]} 48... Bg4 {[%clk 0:00:41.3]} 49. Rxd4 {[%clk 0:00:13.9]} 49... Bxf5+
{[%clk 0:00:41.6]} 50. Ke3 {[%clk 0:00:15]} 50... Re6+ {[%clk 0:00:42.4]} 51.
Kf4 {[%clk 0:00:15.8]} 51... Rb6 {[%clk 0:00:42.3]} 52. Rd8 {[%clk 0:00:12.3]}
52... Rb4+ {[%clk 0:00:42]} 53. d4 {[%clk 0:00:13.3]} 53... Bg6 {[%clk 0:00:39]}
54. Rd6+ {[%clk 0:00:13.8]} 54... Kf7 {[%clk 0:00:39.6]} 55. Kg5 {[%clk
0:00:14.8]} 55... Rb5+ {[%clk 0:00:39.7]} 56. d5 {[%clk 0:00:15.9]} 56... Be4
{[%clk 0:00:40.5]} 57. Rd7+ {[%clk 0:00:14.4]} 57... Ke8 {[%clk 0:00:40.9]} 58.
Rd6 {[%clk 0:00:14.2]} 58... Bxd5 {[%clk 0:00:41.6]} 59. Kf6 {[%clk 0:00:14.8]}
59... Bf3 {[%clk 0:00:41]} 60. Re6+ {[%clk 0:00:13.8]} 60... Kd7 {[%clk
0:00:39.8]} 61. Re7+ {[%clk 0:00:14.8]} 61... Kd6 {[%clk 0:00:40.6]} 62. Re6+
{[%clk 0:00:16.2]} 62... Kd7 {[%clk 0:00:37.4]} 63. Re7+ {[%clk 0:00:17.5]}
63... Kd8 {[%clk 0:00:38.8]} 64. Re5 {[%clk 0:00:18.7]} 64... Rb6+ {[%clk
0:00:39.1]} 65. Re6 {[%clk 0:00:19]} 65... Rb4 {[%clk 0:00:40.2]} 66. Re3 {[%clk
0:00:15]} 66... Bg4 {[%clk 0:00:37]} 67. Kg5 {[%clk 0:00:15.8]} 67... Kd7 {[%clk
0:00:36.1]} 68. h5 {[%clk 0:00:16.8]} 68... Be6 {[%clk 0:00:35.4]} 69. h6 {[%clk
0:00:16.5]} 69... Ke7 {[%clk 0:00:36.5]} 70. h7 {[%clk 0:00:10.5]} 70... Rb8
{[%clk 0:00:19.3]} 71. Kg6 {[%clk 0:00:11.6]} 71... Rf8 {[%clk 0:00:16.1]} 72.
Kg7 {[%clk 0:00:07.8]} 72... Rf7+ {[%clk 0:00:16.1]} 73. Kg6 {[%clk 0:00:08.2]}
73... Rf6+ {[%clk 0:00:16.4]} 74. Kg7 {[%clk 0:00:08.8]} 74... Rf7+ {[%clk
0:00:16.8]} 75. Kg6 {[%clk 0:00:09.7]} 75... Rf6+ {[%clk 0:00:13.4]} 76. Kg5
{[%clk 0:00:10.9]} 76... Rf8 {[%clk 0:00:14.1]} 77. Kg6 {[%clk 0:00:12.2]} 77...
Kd6 {[%clk 0:00:12.1]} 78. Kg7 {[%clk 0:00:11.9]} 78... Rf7+ {[%clk 0:00:13.1]}
79. Kh6 {[%clk 0:00:13.2]} 79... Rf6+ {[%clk 0:00:09]} 80. Kg7 {[%clk
0:00:11.7]} 80... Rf7+ {[%clk 0:00:09.5]} 81. Kg6 {[%clk 0:00:11.6]} 81... Rf8
{[%clk 0:00:10]} 82. Rf3 {[%clk 0:00:07.3]} 82... Rb8 {[%clk 0:00:07.6]} 83. Kg7
{[%clk 0:00:07.7]} 83... Ke7 {[%clk 0:00:06]} 84. h8=Q {[%clk 0:00:07.9]} 84...
Rxh8 {[%clk 0:00:06.4]} 85. Kxh8 {[%clk 0:00:09.8]} 85... Kd6 {[%clk 0:00:07.6]}
86. Kg7 {[%clk 0:00:11]} 86... Ke5 {[%clk 0:00:08.7]} 87. Re3+ {[%clk
0:00:11.5]} 87... Kd6 {[%clk 0:00:09.9]} 88. Kf6 {[%clk 0:00:12.8]} 88... Bc4
{[%clk 0:00:11]} 89. Re4 {[%clk 0:00:12.2]} 89... Kc5 {[%clk 0:00:11.8]} 90. Ke5
{[%clk 0:00:12.9]} 90... Kb4 {[%clk 0:00:12.4]} 91. Kd4 {[%clk 0:00:13.6]} 91...
Bf7 {[%clk 0:00:12.2]} 92. Re7 {[%clk 0:00:14.7]} 92... Bg8 {[%clk 0:00:11.6]}
93. Rb7+ {[%clk 0:00:15.4]} 93... Ka3 {[%clk 0:00:12.7]} 94. Kc3 {[%clk
0:00:15.9]} 94... Ka2 {[%clk 0:00:13.9]} 95. Ra7+ {[%clk 0:00:16.3]} 95... Kb1
{[%clk 0:00:14.8]} 96. Re7 {[%clk 0:00:15.7]} 96... Bd5 {[%clk 0:00:14.4]} 97.
Re5 {[%clk 0:00:17.2]} 97... Bf7 {[%clk 0:00:14.6]} 98. Re2 {[%clk 0:00:18.6]}
98... Ka1 {[%clk 0:00:14.7]} 99. Rb2 {[%clk 0:00:19.6]} 99... Be6 {[%clk
0:00:15.2]} 100. Kc2 {[%clk 0:00:20.8]} 100... Bf5+ {[%clk 0:00:15.6]} 101. Kb3
{[%clk 0:00:22]} 101... Be6+ {[%clk 0:00:16.5]} 102. Ka3 {[%clk 0:00:23.5]}
102... Bf5 {[%clk 0:00:16.9]} 103. Rf2 {[%clk 0:00:24.3]} 103... Bb1 {[%clk
0:00:17.6]} 104. Kb3 {[%clk 0:00:24.9]} 104... Be4 {[%clk 0:00:18]} 105. Kc3
{[%clk 0:00:26.8]} 105... Bb1 {[%clk 0:00:18.3]} 106. Rf4 {[%clk 0:00:27.8]}
106... Bg6 {[%clk 0:00:18.9]} 107. Rb4 {[%clk 0:00:27.2]} 107... Ka2 {[%clk
0:00:19.2]} 108. Rb5 {[%clk 0:00:27.5]} 108... Ka1 {[%clk 0:00:18.9]} 109. Rb6
{[%clk 0:00:27.2]} 109... Bb1 {[%clk 0:00:19.5]} 110. Kb3 {[%clk 0:00:28.5]}
110... Ba2+ {[%clk 0:00:20.1]} 111. Kc2 {[%clk 0:00:29.2]} 111... Bd5 {[%clk
0:00:20.2]} 112. Ra6+ {[%clk 0:00:29]} 112... Ba2 {[%clk 0:00:21]} 113. Rh6
{[%clk 0:00:30.8]} 113... Bd5 {[%clk 0:00:21.5]} 114. Rh5 {[%clk 0:00:31]}
114... Be4+ {[%clk 0:00:22.2]} 115. Kb3 {[%clk 0:00:31.3]} 115... Bg6 {[%clk
0:00:22.1]} 116. Ra5+ {[%clk 0:00:29.6]} 116... Kb1 {[%clk 0:00:22]} 117. Rg5
{[%clk 0:00:31.5]} 117... Bc2+ {[%clk 0:00:21.6]} 118. Kc3 {[%clk 0:00:31.9]}
118... Bh7 {[%clk 0:00:21.6]} 119. Rg2 {[%clk 0:00:32.1]} 119... Ka1 {[%clk
0:00:22.3]} 120. Rb2 {[%clk 0:00:33]} 120... Bf5 {[%clk 0:00:21.9]} 121. Rb6
{[%clk 0:00:34.1]} 121... Be4 {[%clk 0:00:22.2]} 122. Rb4 {[%clk 0:00:34.7]}
122... Bb1 {[%clk 0:00:22.6]} 123. Ra4+ {[%clk 0:00:34.4]} 123... Ba2 {[%clk
0:00:23.3]} 124. Rxa2+ {[%clk 0:00:34.4]} 124... Kxa2 {[%clk 0:00:23.9]} 1/2-1/2

[Event "*** Titled Tuesday Blitz"]
[Site "Chess.com"]
[Date "2020.02.04"]
[Round "9"]
[White "JozefKneht"]
[Black "czasnaszachy"]
[Result "1/2-1/2"]
[WhiteElo "2416"]
[BlackElo "2316"]
[TimeControl "180+2"]
[EndTime "15:01:50 PST"]
[Termination "Game drawn by agreement"]

1. d4 {[%clk 0:03:01.9]} 1... Nf6 {[%clk 0:03:00]} 2. Bf4 {[%clk 0:03:03.2]}
2... d5 {[%clk 0:02:59]} 3. e3 {[%clk 0:03:04.4]} 3... c5 {[%clk 0:03:00]} 4. c3
{[%clk 0:03:05.1]} 4... Nc6 {[%clk 0:03:01]} 5. Nd2 {[%clk 0:03:06]} 5... Qb6
{[%clk 0:02:58.5]} 6. Qb3 {[%clk 0:03:04.2]} 6... c4 {[%clk 0:02:59.5]} 7. Qc2
{[%clk 0:03:05.2]} 7... g6 {[%clk 0:02:55.7]} 8. e4 {[%clk 0:03:05.6]} 8... e6
{[%clk 0:02:50.4]} 9. Ngf3 {[%clk 0:02:50.9]} 9... Bg7 {[%clk 0:02:51.2]} 10.
Be2 {[%clk 0:02:51.5]} 10... O-O {[%clk 0:02:51.8]} 11. O-O {[%clk 0:02:51.8]}
11... Nxe4 {[%clk 0:02:43.8]} 12. Nxe4 {[%clk 0:02:50.3]} 12... dxe4 {[%clk
0:02:44.8]} 13. Nd2 {[%clk 0:02:42.5]} 1/2-1/2

[Event "*** Titled Tuesday Blitz"]
[Site "Chess.com"]
[Date "2020.02.04"]
[Round "9"]
[White "Mikhail_Golubev"]
[Black "XiaoKangZhong"]
[Result "1-0"]
[WhiteElo "2529"]
[BlackElo "2356"]
[TimeControl "180+2"]
[EndTime "15:04:18 PST"]
[Termination "Mikhail_Golubev won by checkmate"]

1. e4 {[%clk 0:03:01.9]} 1... c6 {[%clk 0:03:01.9]} 2. d4 {[%clk 0:02:58.3]}
2... d5 {[%clk 0:03:02.4]} 3. Nc3 {[%clk 0:02:59.3]} 3... dxe4 {[%clk
0:03:02.9]} 4. Nxe4 {[%clk 0:03:00.4]} 4... Nf6 {[%clk 0:03:04.5]} 5. Nxf6+
{[%clk 0:03:01]} 5... exf6 {[%clk 0:03:05.7]} 6. c3 {[%clk 0:03:02.4]} 6... Bd6
{[%clk 0:03:07.1]} 7. Bd3 {[%clk 0:03:03.5]} 7... O-O {[%clk 0:03:08.3]} 8. Ne2
{[%clk 0:03:04.6]} 8... Re8 {[%clk 0:03:09.9]} 9. Qc2 {[%clk 0:03:05.7]} 9... h5
{[%clk 0:03:10.6]} 10. Be3 {[%clk 0:03:05.6]} 10... Qc7 {[%clk 0:03:09.9]} 11.
O-O-O {[%clk 0:03:04.7]} 11... Nd7 {[%clk 0:03:02.4]} 12. h3 {[%clk 0:03:00.8]}
12... Nb6 {[%clk 0:02:58.4]} 13. c4 {[%clk 0:02:59]} 13... c5 {[%clk 0:02:57.6]}
14. g4 {[%clk 0:02:44.4]} 14... h4 {[%clk 0:02:41.1]} 15. d5 {[%clk 0:02:01.4]}
15... Nd7 {[%clk 0:02:30.4]} 16. g5 {[%clk 0:01:56.8]} 16... Ne5 {[%clk
0:02:26.6]} 17. gxf6 {[%clk 0:01:53.3]} 17... Nxd3+ {[%clk 0:02:27]} 18. Qxd3
{[%clk 0:01:51.6]} 18... g6 {[%clk 0:02:28.4]} 19. Rhg1 {[%clk 0:01:47.1]} 19...
Be5 {[%clk 0:02:21.1]} 20. Rxg6+ {[%clk 0:01:40.2]} 20... fxg6 {[%clk 0:02:23]}
21. Qxg6+ {[%clk 0:01:40.7]} 21... Kh8 {[%clk 0:02:24.9]} 22. Qxe8+ {[%clk
0:01:39.9]} 22... Kh7 {[%clk 0:02:26.6]} 23. Qh5+ {[%clk 0:01:35.8]} 23... Kg8
{[%clk 0:02:27]} 24. Rg1+ {[%clk 0:01:36]} 24... Kf8 {[%clk 0:02:28.8]} 25. Bh6+
{[%clk 0:01:35.8]} 25... Qg7 {[%clk 0:02:26.9]} 26. Bxg7+ {[%clk 0:01:33.2]}
26... Kg8 {[%clk 0:02:27.7]} 27. f7# {[%clk 0:01:34.1]} 1-0

[Event "*** Titled Tuesday Blitz"]
[Site "Chess.com"]
[Date "2020.02.04"]
[Round "9"]
[White "Shukh_Nikolay"]
[Black "Lagmantr"]
[Result "1-0"]
[WhiteElo "2561"]
[BlackElo "2719"]
[TimeControl "180+2"]
[EndTime "15:04:35 PST"]
[Termination "Shukh_Nikolay won by resignation"]

1. e4 {[%clk 0:03:01.4]} 1... b6 {[%clk 0:03:01.2]} 2. d4 {[%clk 0:03:01.9]}
2... Bb7 {[%clk 0:03:02.7]} 3. Nc3 {[%clk 0:03:03.5]} 3... e6 {[%clk 0:03:03.2]}
4. Bd3 {[%clk 0:03:05.1]} 4... c5 {[%clk 0:03:03.8]} 5. d5 {[%clk 0:03:05]} 5...
Nf6 {[%clk 0:03:02.8]} 6. Nge2 {[%clk 0:03:01.5]} 6... exd5 {[%clk 0:03:01.4]}
7. exd5 {[%clk 0:03:02.4]} 7... Nxd5 {[%clk 0:02:53.7]} 8. Nxd5 {[%clk 0:03:03]}
8... Bxd5 {[%clk 0:02:55.6]} 9. O-O {[%clk 0:03:03.7]} 9... Be7 {[%clk
0:02:53.5]} 10. Nf4 {[%clk 0:03:03.3]} 10... Bb7 {[%clk 0:02:54.1]} 11. Qh5
{[%clk 0:02:56.5]} 11... g6 {[%clk 0:02:52.3]} 12. Nxg6 {[%clk 0:02:25.8]} 12...
fxg6 {[%clk 0:02:45.5]} 13. Bxg6+ {[%clk 0:02:25]} 13... hxg6 {[%clk 0:02:47.4]}
14. Qxh8+ {[%clk 0:02:26]} 14... Kf7 {[%clk 0:02:48.7]} 15. Qh7+ {[%clk
0:02:26]} 15... Kf6 {[%clk 0:02:49.9]} 16. Re1 {[%clk 0:02:12]} 16... Nc6 {[%clk
0:02:45.7]} 17. h4 {[%clk 0:02:01.1]} 17... Kf5 {[%clk 0:02:16.6]} 18. Qf7+
{[%clk 0:01:47.4]} 18... Bf6 {[%clk 0:02:10.7]} 19. g4+ {[%clk 0:01:33.8]} 19...
Kxg4 {[%clk 0:02:11.5]} 20. Qxg6+ {[%clk 0:01:34.4]} 20... Bg5 {[%clk
0:02:12.1]} 21. Re4+ {[%clk 0:01:22.3]} 1-0

[Event "*** Titled Tuesday Blitz"]
[Site "Chess.com"]
[Date "2020.02.04"]
[Round "9"]
[White "Perecke"]
[Black "secretsuperstar7"]
[Result "1-0"]
[WhiteElo "2282"]
[BlackElo "2216"]
[TimeControl "180+2"]
[EndTime "15:04:53 PST"]
[Termination "Perecke won by resignation"]

1. e4 {[%clk 0:03:01.9]} 1... c5 {[%clk 0:02:58.2]} 2. Nf3 {[%clk 0:03:01.4]}
2... d6 {[%clk 0:02:58.3]} 3. d4 {[%clk 0:03:02.6]} 3... cxd4 {[%clk 0:02:58.5]}
4. Nxd4 {[%clk 0:03:04.5]} 4... Nf6 {[%clk 0:02:59.4]} 5. Nc3 {[%clk 0:03:05.3]}
5... Nc6 {[%clk 0:03:00.1]} 6. Bg5 {[%clk 0:03:05.3]} 6... e6 {[%clk 0:03:00.3]}
7. Qd2 {[%clk 0:03:06.5]} 7... a6 {[%clk 0:03:01.4]} 8. O-O-O {[%clk 0:03:05.4]}
8... Bd7 {[%clk 0:03:02.4]} 9. f4 {[%clk 0:03:03.9]} 9... Qc7 {[%clk 0:03:00.2]}
10. Nxc6 {[%clk 0:02:25]} 10... Bxc6 {[%clk 0:02:59.6]} 11. Bd3 {[%clk
0:02:22.6]} 11... b5 {[%clk 0:02:48.8]} 12. Rhe1 {[%clk 0:02:20.4]} 12... b4
{[%clk 0:02:47.3]} 13. Bxf6 {[%clk 0:02:11.6]} 13... gxf6 {[%clk 0:02:46.4]} 14.
Nd5 {[%clk 0:02:11.3]} 14... Qd8 {[%clk 0:02:30.2]} 15. Qxb4 {[%clk 0:02:05]}
15... Bd7 {[%clk 0:02:23.5]} 16. Qc3 {[%clk 0:01:36.7]} 16... Be7 {[%clk
0:02:10.2]} 17. Nc7+ {[%clk 0:01:36.3]} 17... Kf8 {[%clk 0:02:10.3]} 18. Nxa8
{[%clk 0:01:36.7]} 18... Qxa8 {[%clk 0:02:11.1]} 19. e5 {[%clk 0:01:37.6]} 19...
d5 {[%clk 0:02:08.5]} 20. exf6 {[%clk 0:01:33.4]} 20... Bd6 {[%clk 0:02:09.6]}
21. f5 {[%clk 0:01:29.8]} 21... e5 {[%clk 0:02:02.1]} 22. Rxe5 {[%clk
0:01:18.8]} 22... Bxe5 {[%clk 0:02:01.2]} 23. Qxe5 {[%clk 0:01:20.7]} 23... Qb8
{[%clk 0:02:00.4]} 24. Qe7+ {[%clk 0:01:18]} 24... Kg8 {[%clk 0:02:00.2]} 25.
Qxd7 {[%clk 0:01:15.4]} 1-0